bitfinex-derivatives/quotes_SOLF0:USTF0_20250731
["timestamp","ask_amount","ask_price","bid_price","bid_amount"]
[1753995228986,3.25,175.08,175.06,3.28]
[1753995229588,7.37238055,175.13,174.98,105.88]
[1753995229787,3.25,175.1,175.04,3.28]
[1753995229982,3.25,175.07,175.04,3.28]
[1753995230882,3.25,175.08,175.01,7.37238055]
[1753995231187,3.25,175.08,175.02,3.28]
[1753995231387,3.25,175.08,174.99,3.28]
[1753995231589,3.25,175.08,175.0,7.37238055]
[1753995231782,3.25,175.08,175.01,3.28]
[1753995231984,3.25,175.08,175.01,8.995]
[1753995232289,3.25,175.08,175.01,3.28]
[1753995232483,3.25,175.06,174.99,3.28]
[1753995232883,3.25,175.03,174.99,8.9956]
[1753995233083,3.25,175.02,175.01,3.28]
[1753995233884,3.25,175.01,175.0,3.28]
[1753995234482,3.25,175.03,175.01,3.28]
[1753995234681,3.25,175.02,175.01,3.28]
[1753995235079,3.25,175.02,174.99,3.28]
[1753995235384,3.25,175.01,175.0,3.28]
[1753995235790,3.25,175.0,174.98,3.28]
[1753995235993,3.25,175.0,174.99,3.28]
[1753995238288,3.25,175.0,174.98,3.28]
[1753995239796,3.28,174.99,174.97,7.37238055]
[1753995239993,5.7152,175.01,174.96,5.7166]
[1753995240198,3.28,174.98,174.97,3.23]
[1753995240697,3.28,174.98,174.97,8.9464]
[1753995241900,3.28,174.98,174.95,3.23]
[1753995242292,3.28,174.98,174.93,3.23]
[1753995242790,3.28,174.98,174.94,3.23]
[1753995242986,3.28,174.99,174.95,3.23]
[1753995243394,3.28,174.99,174.92,489.6]
[1753995243589,7.37238055,175.02,174.94,5.7173]
[1753995243590,3.28,174.97,174.94,5.7173]
[1753995243797,3.28,174.97,174.93,3.23]
[1753995244192,3.28,174.96,174.93,3.23]
[1753995244395,3.28,174.96,174.94,3.23]
[1753995244597,3.28,174.96,174.95,8.947]
[1753995244801,3.28,175.0,174.95,4.5289375]
[1753995244992,3.28,175.0,174.94,4.5289375]
[1753995245194,5.7166,174.97,174.93,8.9475]
[1753995245395,3.28,175.0,174.94,7.7589375]
[1753995245697,3.28,174.97,174.94,8.9471]
[1753995245899,4.5289375,175.03,174.95,3.23]
[1753995246096,3.28,175.02,174.95,3.23]
[1753995246394,3.28,174.98,174.95,8.9469]
[1753995246599,3.28,174.97,174.95,8.9469]
[1753995246789,3.28,174.96,174.95,8.9469]
[1753995247389,3.28,174.98,174.96,8.9467]
[1753995247591,3.28,174.97,174.96,8.9467]
[1753995247794,3.28,174.97,174.96,3.23]
[1753995248796,3.28,175.02,174.96,3.23]
[1753995248999,3.28,175.01,174.99,4.5289375]
[1753995249201,3.28,175.01,175.0,3.23]
[1753995250403,3.28,175.01,175.0,8.9454]
[1753995250600,3.28,175.01,175.0,3.23]
[1753995250800,3.28,175.01,174.99,10.2445375]
[1753995251104,3.28,175.0,174.99,13.4745375]
[1753995251303,4.74796375,175.12,174.99,4.5289375]
[1753995251304,3.28,175.02,174.99,4.5289375]
[1753995251504,3.28,175.02,175.01,8.945]
[1753995252096,3.28,175.04,175.02,5.7147]
[1753995252306,3.28,175.05,175.02,3.23]
[1753995252900,8.994,175.05,175.02,3.23]
[1753995253101,3.28,175.03,175.02,3.23]
[1753995253298,3.28,175.02,175.01,10.2438375]
[1753995253502,3.28,175.02,174.99,4.5289375]
[1753995253704,4.5289375,175.06,174.99,4.5289375]
[1753995253904,3.28,175.01,175.0,3.23]
[1753995254104,3.28,175.01,175.0,8.9454]
[1753995254309,4.5289375,175.08,175.0,3.23]
[1753995254510,3.28,175.07,175.01,7.7589375]
[1753995255705,5.7149,175.02,174.99,10.2445375]
[1753995256011,3.28,175.01,175.0,3.23]
[1753995256311,3.28,175.01,174.92,161.356]
[1753995256312,3.28,175.01,174.98,4.5289375]
[1753995256510,3.28,175.0,174.99,3.23]
[1753995259515,3.28,175.01,175.0,3.23]
[1753995260210,3.28,175.01,174.99,3.23]
[1753995260410,3.28,175.01,175.0,3.23]
[1753995261011,8.9951,175.01,175.0,3.23]
[1753995261213,8.9951,175.01,174.98,4.5289375]
[1753995261416,3.28,175.0,174.98,4.5289375]
[1753995261717,3.28,175.0,174.99,3.23]
[1753995261905,8.9954,175.0,174.99,3.23]
[1753995262115,4.5289375,175.03,174.95,4.5289375]
[1753995262420,3.28,175.01,174.95,7.7589375]
[1753995262621,3.28,174.97,174.96,3.23]
[1753995262821,4.5289375,175.03,174.95,4.5289375]
[1753995262822,3.28,174.99,174.95,4.5289375]
[1753995263014,3.28,174.99,174.96,3.23]
[1753995263523,3.28,174.99,174.97,4.5289375]
[1753995263714,3.28,174.99,174.98,3.23]
[1753995263915,4.78341727,175.05,174.98,3.23]
[1753995264111,7.44880068,175.04,175.03,7.7589375]
[1753995264323,4.16880068,175.04,175.03,7.7589375]
[1753995264830,7.44880068,175.04,175.03,7.7589375]
[1753995265220,3.28,175.06,175.03,7.7589375]
[1753995265415,3.28,175.06,175.05,4.5289375]
[1753995265619,7.45153707,175.06,175.05,7.7589375]
[1753995267419,4.17153707,175.06,175.05,7.7589375]
[1753995267725,4.78341727,175.12,175.06,3.23]
[1753995268018,4.78341727,175.12,175.07,7.7589375]
[1753995268222,3.28,175.08,175.07,7.7589375]
[1753995268525,7.44010601,175.08,175.07,7.7589375]
[1753995270320,3.28,175.08,175.07,7.7589375]
[1753995270526,3.19,175.09,175.08,3.17]
[1753995271622,3.19,175.09,175.07,4.5289375]
[1753995271623,3.19,175.08,175.07,7.6989375]
[1753995274230,3.19,175.13,175.08,3.17]
[1753995274425,358.0,175.24,175.1,3.17]
[1753995274426,3.19,175.11,175.1,3.17]
[1753995274628,9.31235477,175.18,175.11,3.17]
[1753995274822,3.19,175.16,175.12,3.17]
[1753995275126,3.19,175.16,175.11,4.5289375]
[1753995275127,3.19,175.16,175.13,7.6989375]
[1753995275323,3.19,175.14,175.13,4.5289375]
[1753995277027,5.7105,175.15,175.13,4.5289375]
[1753995277228,3.19,175.14,175.13,7.6989375]
[1753995277826,3.19,175.14,175.13,4.5289375]
[1753995278033,5.7103,175.16,175.13,7.6989375]
[1753995278435,3.19,175.14,175.13,7.6989375]
[1753995278832,3.19,175.16,175.14,3.17]
[1753995279028,3.19,175.15,175.14,3.17]
[1753995279433,3.19,175.2,175.12,7.6989375]
[1753995279834,4.13797937,175.19,175.12,7.6989375]
[1753995280035,3.19,175.18,175.12,7.6989375]
[1753995280430,3.19,175.18,175.09,7.6989375]
[1753995280636,3.19,175.16,175.09,7.6989375]
[1753995281034,3.19,175.12,175.09,7.6989375]
[1753995281225,3.19,175.11,175.1,3.17]
[1753995281737,3.19,175.13,175.09,4.5289375]
[1753995281935,3.19,175.13,175.1,3.17]
[1753995282334,4.5289375,175.17,175.1,3.17]
[1753995282534,3.19,175.16,175.1,3.17]
[1753995282735,5.711,175.14,175.09,4.5289375]
[1753995282935,3.19,175.13,175.1,3.17]
[1753995283125,3.19,175.13,175.09,4.5289375]
[1753995283126,3.19,175.12,175.09,7.6989375]
[1753995283330,3.19,175.12,175.1,3.17]
[1753995283633,3.19,175.11,175.1,3.17]
[1753995283832,3.19,175.16,175.1,3.17]
[1753995284032,5.711,175.14,175.09,10.2412375]
[1753995284238,3.19,175.11,175.1,3.17]
[1753995285341,3.19,175.11,175.1,8.8821]
[1753995285536,5.711,175.14,175.1,5.7121]
[1753995285737,3.19,175.12,175.11,3.17]
[1753995285936,4.5289375,175.17,175.11,3.17]
[1753995286142,3.19,175.17,175.14,3.17]
[1753995286442,3.19,175.16,175.13,7.6989375]
[1753995286743,3.19,175.19,175.13,4.5289375]
[1753995287040,5.7097,175.18,175.13,10.2398375]
[1753995287235,3.19,175.17,175.13,13.4098375]
[1753995287535,3.19,175.17,175.14,3.17]
[1753995288047,3.19,175.16,175.13,4.5289375]
[1753995288340,4.5289375,175.2,175.13,7.6989375]
[1753995288341,3.19,175.15,175.13,7.6989375]
[1753995288537,3.19,175.23,175.14,3.17]
[1753995288746,388.5089375,175.24,175.06,11.4269]
[1753995288747,4.13038914,175.22,175.16,4.5289375]
[1753995288944,5.7092,175.2,175.16,7.6989375]
[1753995289238,3.19,175.19,175.16,7.6989375]
[1753995289437,7.7189375,175.23,175.16,7.6989375]
[1753995289743,3.19,175.17,175.16,7.6989375]
[1753995290141,3.19,175.17,175.16,3.17]
[1753995290337,3.19,175.17,175.14,10.2394375]
[1753995290537,383.98,175.24,175.11,4.5289375]
[1753995290538,4.5289375,175.19,175.11,4.5289375]
[1753995290736,395.3952,175.24,175.1,3.17]
[1753995290737,3.19,175.16,175.1,3.17]
[1753995291844,3.19,175.13,175.11,8.8816]
[1753995292637,5.7112,175.13,175.1,5.7119]
[1753995292947,3.19,175.16,175.1,3.17]
[1753995293944,3.19,175.16,175.09,4.5289375]
[1753995294148,3.19,175.16,175.13,3.17]
[1753995294845,3.19,175.16,175.12,3.17]
[1753995295046,3.19,175.16,175.13,3.17]
[1753995295542,3.19,175.13,175.04,3.17]
[1753995295745,3.19,175.13,175.05,4.5289375]
[1753995295944,3.19,175.13,175.06,3.17]
[1753995296246,3.19,175.1,175.06,8.8832]
[1753995296445,3.19,175.1,175.06,3.17]
[1753995296639,4.5289375,175.11,175.06,3.17]
[1753995296640,5.7127,175.09,175.06,3.17]
[1753995296949,3.19,175.08,175.06,3.17]
[1753995297848,3.19,175.08,175.04,3.17]
[1753995298345,5.7122,175.1,175.04,3.17]
[1753995298549,5.7128,175.08,175.03,3.16]
[1753995298747,5.7128,175.08,175.02,110.4089375]
[1753995299047,3.16,175.08,175.04,3.16]
[1753995299851,3.16,175.05,175.04,3.16]
[1753995300346,3.16,175.08,175.03,3.16]
[1753995300648,3.16,175.07,175.03,3.16]
[1753995300847,3.16,175.11,175.04,4.5289375]
[1753995301045,3.16,175.11,175.05,3.16]
[1753995301247,8.8718,175.11,175.06,5.7131]
[1753995301447,3.16,175.1,175.07,3.16]
[1753995301649,3.16,175.1,175.08,3.16]
[1753995301949,3.16,175.12,175.09,3.16]
[1753995302254,3.16,175.11,175.08,4.5289375]
[1753995302553,3.16,175.11,175.08,7.6889375]
[1753995303053,3.16,175.11,175.09,3.16]
[1753995303254,3.16,175.11,175.1,3.16]
[1753995303450,3.16,175.13,175.1,3.16]
[1753995303654,3.16,175.13,175.11,3.16]
[1753995303850,3.16,175.19,175.13,3.16]
[1753995304052,3.16,175.19,175.14,4.5289375]
[1753995304251,3.16,175.17,175.11,3.16]
[1753995304448,4.5289375,175.16,175.09,3.16]
[1753995304753,5.711,175.14,175.09,3.16]
[1753995304944,3.16,175.15,175.08,4.5289375]
[1753995304945,3.16,175.15,175.1,3.16]
[1753995305148,3.16,175.15,175.08,3.16]
[1753995305349,3.16,175.13,175.08,3.16]
[1753995305549,5.7119,175.11,175.08,3.16]
[1753995305750,4.5289375,175.14,175.08,3.16]
[1753995306050,3.16,175.11,175.09,3.16]
[1753995306252,3.16,175.1,175.09,3.16]
[1753995307956,8.8715,175.12,175.09,3.16]
[1753995308254,3.16,175.11,175.1,3.16]
[1753995308557,3.16,175.1,175.09,3.16]
[1753995309051,3.16,175.1,175.07,3.16]
[1753995309254,3.16,175.15,175.08,3.16]
[1753995309458,5.7116,175.12,175.08,3.16]
[1753995309656,3.16,175.11,175.09,3.16]
[1753995310051,3.16,175.1,175.09,3.16]
[1753995310755,7.37051488,175.16,175.09,3.16]
[1753995310951,4.20442367,175.15,175.1,7.37051488]
[1753995311153,8.8706,175.15,175.14,3.16]
[1753995311459,13.0743735,175.15,175.14,3.16]
[1753995311765,7.3637735,175.15,175.14,3.16]
[1753995311957,4.2037735,175.15,175.14,3.16]
[1753995312159,3.16,175.16,175.15,3.16]
[1753995312361,4.77392358,175.2,175.13,3.16]
[1753995312556,7.93392358,175.19,175.11,3.16]
[1753995312756,5.711,175.13,175.1,7.37051488]
[1753995312958,3.16,175.12,175.11,3.16]
[1753995314460,5.711,175.13,175.11,3.16]
[1753995314659,8.871,175.13,175.12,3.16]
[1753995314858,3.16,175.13,175.12,3.16]
[1753995315764,4.77392358,175.19,175.11,3.16]
[1753995315965,3.16,175.18,175.11,3.16]
[1753995316172,5.7105,175.15,175.11,3.16]
[1753995316374,5.7105,175.15,175.12,3.16]
[1753995316673,3.16,175.13,175.12,3.16]
[1753995317079,3.16,175.15,175.12,3.16]
[1753995317575,3.16,175.15,175.13,3.16]
[1753995317775,3.16,175.14,175.13,3.16]
[1753995318172,3.16,175.14,175.1,7.37051488]
[1753995318477,3.16,175.17,175.12,3.16]
[1753995318671,3.16,175.15,175.12,3.16]
[1753995319076,3.16,175.14,175.12,3.16]
[1753995320073,8.8707,175.14,175.12,3.16]
[1753995320276,5.7107,175.14,175.12,3.16]
[1753995320467,3.16,175.13,175.12,3.16]
[1753995320672,3.16,175.12,175.06,3.16]
[1753995320873,3.16,175.1,175.05,3.16]
[1753995321073,3.16,175.1,175.07,5.7129]
[1753995321275,3.16,175.09,175.05,3.16]
[1753995322077,12.14443846,175.15,175.07,3.16]
[1753995322374,3.16,175.1,175.08,3.16]
[1753995322572,3.16,175.1,175.06,7.37051488]
[1753995322777,3.16,175.15,175.09,3.16]
[1753995322977,3.16,175.13,175.09,3.16]
[1753995323172,4.77392358,175.17,175.09,5.7123]
[1753995323373,7.36923802,175.16,175.13,3.16]
[1753995323577,3.16,175.16,175.13,3.16]
[1753995323875,3.16,175.19,175.12,3.16]
[1753995324073,3.16,175.17,175.12,3.16]
[1753995324273,7.36867154,175.16,175.12,3.16]
[1753995324468,4.20867154,175.15,175.12,3.16]
[1753995324777,3.16,175.15,175.14,3.16]
[1753995324972,7.36892868,175.15,175.14,3.16]
[1753995325171,4.20892868,175.15,175.14,10.53051488]
[1753995325473,3.16,175.15,175.13,3.16]
[1753995325666,3.16,175.15,175.14,3.16]
[1753995326276,5.7098,175.17,175.13,5.711]
[1753995326476,3.16,175.16,175.15,3.16]
[1753995327076,5.7098,175.17,175.15,3.16]
[1753995327379,3.16,175.17,175.14,5.7105]
[1753995327577,3.16,175.17,175.12,7.37051488]
[1753995327778,3.16,175.17,175.13,3.16]
[1753995328080,4.77392358,175.21,175.13,3.16]
[1753995328277,3.16,175.2,175.13,3.16]
[1753995328477,3.33,175.16,175.13,3.16]
[1753995328778,3.33,175.16,175.13,4.51937875]
[1753995328981,3.33,175.16,175.15,3.08]
[1753995330281,7.53614175,175.16,175.12,3.08]
[1753995330481,3.33,175.15,175.12,3.08]
[1753995330881,3.33,175.18,175.12,3.08]
[1753995331181,3.33,175.15,175.14,3.08]
[1753995332079,3.33,175.19,175.14,3.08]
[1753995332280,3.33,175.17,175.16,7.59937875]
[1753995333383,9.0392,175.19,175.17,3.08]
[1753995333783,5.7092,175.19,175.17,3.08]
[1753995333985,3.33,175.18,175.17,3.08]
[1753995334985,9.0394,175.18,175.17,3.08]
[1753995335984,3.33,175.18,175.17,3.08]
[1753995336285,9.0394,175.18,175.17,3.08]
[1753995337587,3.33,175.18,175.17,3.08]
[1753995337778,3.33,175.21,175.18,3.08]
[1753995337982,9.29330233,175.24,175.19,3.08]
[1753995337983,3.33,175.2,175.19,3.08]
[1753995338184,3.33,175.25,175.19,3.08]
[1753995338379,3.33,175.25,175.23,3.08]
[1753995338579,3.33,175.28,175.23,3.08]
[1753995338779,3.33,175.28,175.22,4.51937875]
[1753995338780,4.13671808,175.27,175.22,4.51937875]
[1753995338985,3.33,175.25,175.24,3.08]
[1753995339385,3.33,175.3,175.25,3.08]
[1753995339579,3.33,175.3,175.24,4.51937875]
[1753995339781,9.0365,175.27,175.24,7.59937875]
[1753995339985,3.33,175.26,175.25,3.08]
[1753995340181,5.707,175.26,175.24,3.08]
[1753995340388,3.33,175.29,175.23,4.51937875]
[1753995340684,3.33,175.29,175.22,3.08]
[1753995340884,5.7074,175.25,175.22,3.08]
[1753995341188,4.51937875,175.3,175.21,4.51937875]
[1753995341383,4.51937875,175.3,175.16,149.66]
[1753995341384,3.33,175.31,175.24,3.08]
[1753995341584,9.0367,175.27,175.25,3.08]
[1753995341983,9.0368,175.26,175.25,3.08]
[1753995342184,3.33,175.24,175.23,3.08]
[1753995342992,4.51937875,175.3,175.22,4.51937875]
[1753995343190,3.33,175.25,175.24,3.08]
[1753995343390,3.33,175.34,175.25,3.08]
[1753995343587,3.33,175.32,175.25,3.08]
[1753995343789,5.7067,175.27,175.25,3.08]
[1753995344090,3.33,175.26,175.25,3.08]
[1753995344486,3.33,175.26,175.23,4.51937875]
[1753995344693,3.33,175.28,175.23,3.08]
[1753995345187,4.51937875,175.25,175.18,3.08]
[1753995345390,3.33,175.24,175.18,3.08]
[1753995345690,3.33,175.2,175.18,3.08]
[1753995345990,3.33,175.2,175.19,3.08]
[1753995346192,3.33,175.24,175.17,4.51937875]
[1753995346389,3.33,175.24,175.2,3.08]
[1753995346689,5.7083,175.22,175.2,3.08]
[1753995346886,9.0383,175.22,175.2,3.08]
[1753995347888,3.33,175.25,175.22,3.08]
[1753995348093,4.51937875,175.32,175.23,4.51937875]
[1753995348287,3.33,175.3,175.23,4.51937875]
[1753995348488,3.33,175.24,175.23,4.51937875]
[1753995348887,3.33,175.24,175.21,4.51937875]
[1753995349095,3.33,175.24,175.23,3.08]
[1753995349592,5.7069,175.26,175.23,3.08]
[1753995349794,5.7069,175.26,175.23,7.59937875]
[1753995350088,3.33,175.27,175.25,4.51937875]
[1753995350292,3.33,175.27,175.25,7.59937875]
[1753995350687,9.0365,175.27,175.25,7.59937875]
[1753995351295,3.33,175.26,175.25,7.59937875]
[1753995353801,3.33,175.26,175.25,4.51937875]
[1753995354797,9.0368,175.26,175.23,7.59937875]
[1753995354991,3.33,175.24,175.23,7.59937875]
[1753995355602,3.33,175.24,175.23,4.51937875]
[1753995356193,5.7073,175.25,175.21,13.30777875]
[1753995356397,3.33,175.22,175.21,13.30777875]
[1753995356799,3.33,175.22,175.21,7.59937875]
[1753995357896,3.33,175.31,175.22,3.08]
[1753995358097,3.33,175.31,175.3,4.51937875]
[1753995358294,5.706,175.29,175.26,3.06]
[1753995358600,3.01,175.28,175.27,4.51937875]
[1753995358800,3.01,175.28,175.26,10.41359311]
[1753995359005,3.01,175.28,175.26,16.12019311]
[1753995359195,3.01,175.33,175.27,3.06]
[1753995359400,3.01,175.33,175.29,3.06]
[1753995359600,5.7054,175.31,175.29,3.06]
[1753995359801,3.01,175.35,175.29,3.06]
[1753995360804,3.01,175.33,175.29,3.06]
[1753995361101,3.01,175.33,175.28,7.35359311]
[1753995361299,3.01,175.3,175.29,3.06]
[1753995361710,3.01,175.3,175.28,7.35359311]
[1753995361904,3.01,175.36,175.28,7.35359311]
[1753995362207,3.01,175.34,175.28,7.35359311]
[1753995362406,3.01,175.34,175.27,8.7664]
[1753995362608,3.01,175.34,175.28,5.7061]
[1753995363003,3.01,175.34,175.28,3.06]
[1753995363207,3.01,175.34,175.3,3.06]
[1753995363506,7.35359311,175.37,175.3,3.06]
[1753995363507,3.01,175.32,175.3,3.06]
[1753995363710,3.01,175.32,175.3,8.7654]
[1753995364100,3.01,175.32,175.3,3.06]
[1753995364599,4.77392358,175.41,175.28,7.35359311]
[1753995364810,3.01,175.39,175.33,3.06]
[1753995365006,4.11411475,175.38,175.3,7.35359311]
[1753995365208,5.7042,175.35,175.31,3.06]
[1753995365406,3.01,175.34,175.31,3.06]
[1753995365707,3.01,175.33,175.31,3.06]
[1753995366602,3.01,175.33,175.3,7.35359311]
[1753995366603,3.01,175.33,175.32,3.06]
[1753995367109,3.01,175.35,175.32,8.7646]
[1753995367307,3.01,175.34,175.32,5.7046]
[1753995367508,3.01,175.35,175.32,8.7646]
[1753995367701,3.01,175.35,175.32,7.35359311]
[1753995367906,3.01,175.35,175.34,3.06]
[1753995368207,3.01,175.36,175.34,3.06]
[1753995369007,3.01,175.36,175.35,3.06]
[1753995369509,7.35359311,175.43,175.35,3.06]
[1753995369510,3.01,175.42,175.35,3.06]
[1753995369710,3.01,175.4,175.35,3.06]
[1753995369911,5.703,175.38,175.36,3.06]
[1753995370112,3.01,175.37,175.36,3.06]
[1753995370311,8.7132,175.37,175.33,5.7044]
[1753995370505,51.05187585,175.83,175.33,5.7044]
[1753995370506,4.77392358,175.48,175.36,7.35359311]
[1753995370707,7.35359311,175.53,175.44,13.05429311]
[1753995370905,4.07396602,175.52,175.42,7.35359311]
[1753995371105,11.42755913,175.51,175.42,10.36359311]
[1753995371312,5.6988,175.51,175.44,7.35359311]
[1753995371505,5.6988,175.51,175.44,10.36359311]
[1753995371710,7.35359311,175.56,175.45,3.01]
[1753995372013,4.06896008,175.55,175.45,3.01]
[1753995372318,7.35359311,175.52,175.43,3.01]
[1753995372517,3.01,175.49,175.43,3.01]
[1753995373507,5.6998,175.48,175.43,8.7109]
[1753995373709,7.35359311,175.52,175.42,7.35359311]
[1753995373913,3.01,175.51,175.43,3.01]
[1753995374615,3.01,175.47,175.44,8.7107]
[1753995374919,3.01,175.46,175.44,8.7107]
[1753995375706,3.01,175.46,175.43,5.7012]
[1753995375914,3.01,175.46,175.4,3.01]
[1753995376111,3.01,175.45,175.38,3.01]
[1753995376813,3.01,175.45,175.36,7.35359311]
[1753995376814,3.01,175.42,175.37,3.01]
[1753995377502,7.35359311,175.46,175.36,7.35359311]
[1753995377708,3.01,175.43,175.36,3.01]
[1753995378305,7.35359311,175.44,175.37,3.01]
[1753995378511,11.3976,175.51,175.33,3.01]
[1753995378512,3.01,175.41,175.33,3.01]
[1753995379614,3.01,175.41,175.35,5.7038]
[1753995381112,3.01,175.38,175.37,3.01]
[1753995382413,3.01,175.37,175.35,3.01]
[1753995382610,3.01,175.37,175.34,7.35359311]
[1753995382611,7.35359311,175.4,175.32,5.7046]
[1753995382811,3.01,175.34,175.32,8.7146]
[1753995383816,3.01,175.33,175.31,111.2451]
[1753995384017,3.01,175.33,175.31,114.2551]
[1753995384412,3.01,175.32,175.31,108.55]
[1753995384617,3.01,175.3,175.29,383.44]
[1753995384920,3.01,175.3,175.28,3.01]
[1753995385122,3.01,175.34,175.28,3.01]
[1753995385309,8.7144,175.34,175.28,3.01]
[1753995385514,3.01,175.32,175.29,3.01]
[1753995385715,3.01,175.32,175.3,3.01]
[1753995386019,3.01,175.33,175.31,3.01]
[1753995386211,4.51207036,175.37,175.32,3.01]
[1753995386413,3.01,175.34,175.32,3.01]
[1753995386617,3.01,175.32,175.3,3.01]
[1753995386822,3.01,175.3,175.28,3.01]
[1753995387017,5.7049,175.32,175.28,8.7161]
[1753995387224,3.01,175.31,175.25,10.36218768]
[1753995387423,3.01,175.3,175.27,3.01]
[1753995387625,3.01,175.3,175.25,7.35218768]
[1753995387819,3.01,175.32,175.28,3.01]
[1753995388015,3.01,175.36,175.29,5.7055]
[1753995388213,7.35218768,175.37,175.29,5.7055]
[1753995388214,5.7042,175.34,175.29,3.01]
[1753995388415,3.23,175.33,175.29,7.35218768]
[1753995388620,3.23,175.33,175.32,3.01]
[1753995388922,3.23,175.35,175.31,7.35218768]
[1753995389120,3.23,175.35,175.33,3.01]
[1753995389319,3.23,175.42,175.33,7.35218768]
[1753995389517,4.06567714,175.41,175.35,7.35218768]
[1753995389721,12.12611126,175.45,175.36,3.01]
[1753995389722,3.23,175.4,175.36,3.01]
[1753995390323,5.7024,175.4,175.36,8.7133]
[1753995390520,3.23,175.39,175.36,8.7133]
[1753995390725,3.23,175.44,175.37,7.35218768]
[1753995390926,5.7016,175.42,175.38,5.7027]
[1753995391122,7.35218768,175.47,175.38,8.7127]
[1753995391326,3.23,175.4,175.38,3.01]
[1753995391525,3.23,175.42,175.39,3.01]
[1753995391722,3.23,175.48,175.39,8.7126]
[1753995391923,4.06624249,175.47,175.39,8.7126]
[1753995392121,7.29624249,175.46,175.39,8.7126]
[1753995392328,3.23,175.43,175.4,5.7022]
[1753995392526,3.23,175.43,175.39,3.01]
[1753995392527,3.23,175.43,175.41,3.01]
[1753995392926,3.23,175.43,175.42,5.7016]
[1753995393125,7.35218768,175.51,175.41,7.35218768]
[1753995393126,3.23,175.49,175.41,7.35218768]
[1753995393327,3.23,175.44,175.39,7.35218768]
[1753995393532,3.23,175.44,175.4,3.01]
[1753995394227,5.701,175.44,175.4,8.7121]
[1753995394430,3.23,175.48,175.4,3.01]
[1753995394733,5.7006,175.46,175.41,16.06398768]
[1753995394939,3.23,175.45,175.41,16.06398768]
[1753995395142,3.23,175.43,175.41,16.06398768]
[1753995395329,7.35218768,175.43,175.34,47.01]
[1753995395639,3.23,175.42,175.34,3.01]
[1753995395828,3.23,175.39,175.36,5.7035]
[1753995396232,5.7024,175.4,175.36,5.7035]
[1753995396441,3.23,175.37,175.36,5.7035]
[1753995397727,3.23,175.37,175.36,8.7135]
[1753995397932,3.23,175.37,175.36,3.01]
[1753995398733,3.23,175.37,175.35,5.7037]
[1753995398936,3.23,175.37,175.34,3.01]
[1753995398937,3.23,175.36,175.34,3.01]
[1753995399139,3.23,175.36,175.32,112.87218768]
[1753995399337,3.23,175.36,175.35,3.01]
[1753995399736,5.7026,175.39,175.35,8.7137]